[Event "*** Titled Tuesday 3|2 Blitz"]
[Site "Chess.com"]
[Date "2016.08.02"]
[Round "6"]
[White "Schemato"]
[Black "maheswaran26"]
[Result "0-1"]
[WhiteElo "2237"]
[BlackElo "2050"]
[TimeControl "180+2"]
[EndTime "12:22:02 PDT"]
[Termination "maheswaran26 won by resignation"]

1. c4 {[%clk 0:03:01.9]} 1... Nf6 {[%clk 0:02:52.7]} 2. Nc3 {[%clk 0:03:02.5]}
2... d6 {[%clk 0:02:51.1]} 3. g3 {[%clk 0:03:03.4]} 3... g6 {[%clk 0:02:50.6]}
4. Bg2 {[%clk 0:03:04.9]} 4... Bg7 {[%clk 0:02:50.6]} 5. e4 {[%clk 0:03:06.5]}
5... e5 {[%clk 0:02:43.6]} 6. Nge2 {[%clk 0:03:07.7]} 6... O-O {[%clk
0:02:43.3]} 7. O-O {[%clk 0:03:08.1]} 7... Nc6 {[%clk 0:02:42.2]} 8. d3 {[%clk
0:03:09.1]} 8... Be6 {[%clk 0:02:37.2]} 9. Nd5 {[%clk 0:03:09.3]} 9... Ne7
{[%clk 0:02:20.1]} 10. Bg5 {[%clk 0:03:01.2]} 10... Nfxd5 {[%clk 0:02:12.1]} 11.
cxd5 {[%clk 0:03:00.6]} 11... Bd7 {[%clk 0:02:09.7]} 12. d4 {[%clk 0:02:50.3]}
12... f6 {[%clk 0:02:00.7]} 13. Be3 {[%clk 0:02:50.3]} 13... f5 {[%clk
0:02:00.8]} 14. dxe5 {[%clk 0:02:41]} 14... Bxe5 {[%clk 0:01:58.6]} 15. Qd2
{[%clk 0:02:07.5]} 15... fxe4 {[%clk 0:01:54.2]} 16. Bxe4 {[%clk 0:02:07.8]}
16... Nf5 {[%clk 0:01:49.6]} 17. Bg5 {[%clk 0:02:00.7]} 17... Bf6 {[%clk
0:01:47.8]} 18. Bxf6 {[%clk 0:01:57.8]} 18... Qxf6 {[%clk 0:01:47]} 19. Rac1
{[%clk 0:01:53.3]} 19... Rac8 {[%clk 0:01:44.6]} 20. Nf4 {[%clk 0:01:40.7]}
20... c5 {[%clk 0:01:20.8]} 21. dxc6 {[%clk 0:01:40.6]} 21... bxc6 {[%clk
0:01:21.3]} 22. Rfd1 {[%clk 0:01:32.5]} 22... d5 {[%clk 0:01:16.7]} 23. Bg2
{[%clk 0:01:00.5]} 23... Kh8 {[%clk 0:01:12.3]} 24. Rc5 {[%clk 0:00:51.8]} 24...
Rb8 {[%clk 0:01:08.6]} 25. b3 {[%clk 0:00:52.2]} 25... g5 {[%clk 0:01:05.4]} 26.
Nd3 {[%clk 0:00:49.2]} 26... Nd4 {[%clk 0:01:00.1]} 27. Rc3 {[%clk 0:00:39.9]}
27... Bg4 {[%clk 0:00:52.9]} 28. Re1 {[%clk 0:00:27.9]} 28... Nf3+ {[%clk
0:00:50.2]} 29. Bxf3 {[%clk 0:00:28.4]} 29... Bxf3 {[%clk 0:00:47.5]} 30. Ne5
{[%clk 0:00:28.7]} 30... Be4 {[%clk 0:00:45.2]} 31. Nxc6 {[%clk 0:00:24.4]}
31... Rbc8 {[%clk 0:00:32.9]} 32. Nd4 {[%clk 0:00:23]} 32... Rxc3 {[%clk
0:00:28]} 33. f3 {[%clk 0:00:21.3]} 33... Rxf3 {[%clk 0:00:22.6]} 34. Nxf3
{[%clk 0:00:18.9]} 34... Qxf3 {[%clk 0:00:22.3]} 35. Qc3+ {[%clk 0:00:10.9]}
35... Qxc3 {[%clk 0:00:18.7]} 0-1

[Event "*** Titled Tuesday 3|2 Blitz"]
[Site "Chess.com"]
[Date "2016.08.02"]
[Round "6"]
[White "MinhGTrAn"]
[Black "Yaacovn"]
[Result "1-0"]
[WhiteElo "2614"]
[BlackElo "2626"]
[TimeControl "180+2"]
[EndTime "12:22:07 PDT"]
[Termination "MinhGTrAn won by resignation"]

1. d4 {[%clk 0:03:01.9]} 1... Nf6 {[%clk 0:02:36]} 2. Bg5 {[%clk 0:03:00.9]}
2... e6 {[%clk 0:02:36.8]} 3. e4 {[%clk 0:03:00.5]} 3... h6 {[%clk 0:02:36.4]}
4. Bxf6 {[%clk 0:03:01.5]} 4... Qxf6 {[%clk 0:02:38.1]} 5. Nc3 {[%clk
0:03:03.4]} 5... d6 {[%clk 0:02:39.4]} 6. Qd2 {[%clk 0:03:04.2]} 6... g6 {[%clk
0:02:40.6]} 7. Nge2 {[%clk 0:03:02]} 7... Bg7 {[%clk 0:02:41.6]} 8. f4 {[%clk
0:02:59.8]} 8... Qe7 {[%clk 0:02:42.4]} 9. g3 {[%clk 0:02:56.1]} 9... O-O {[%clk
0:02:38.5]} 10. Bg2 {[%clk 0:02:56.9]} 10... e5 {[%clk 0:02:39.8]} 11. O-O-O
{[%clk 0:02:52.6]} 11... exd4 {[%clk 0:02:37.5]} 12. Nxd4 {[%clk 0:02:54.5]}
12... Nc6 {[%clk 0:02:35.8]} 13. Nd5 {[%clk 0:02:53.7]} 13... Qd8 {[%clk
0:02:36.9]} 14. Nb5 {[%clk 0:02:54.3]} 14... Bg4 {[%clk 0:02:34.8]} 15. Rde1
{[%clk 0:02:33.6]} 15... a6 {[%clk 0:02:34.4]} 16. Nbxc7 {[%clk 0:02:21.4]}
16... Rc8 {[%clk 0:02:34.5]} 17. f5 {[%clk 0:02:22.6]} 17... Ne5 {[%clk
0:02:18.5]} 18. f6 {[%clk 0:02:18.2]} 18... Bxf6 {[%clk 0:02:08.8]} 19. Nxf6+
{[%clk 0:02:20.1]} 19... Qxf6 {[%clk 0:02:10.2]} 20. Nd5 {[%clk 0:02:21]} 20...
Qd8 {[%clk 0:02:05.5]} 21. Kb1 {[%clk 0:02:18.3]} 21... Kg7 {[%clk 0:02:04.2]}
22. Rhf1 {[%clk 0:02:17.2]} 22... Be6 {[%clk 0:02:05.2]} 23. Nf4 {[%clk
0:02:12.4]} 23... Qb6 {[%clk 0:02:00.1]} 24. b3 {[%clk 0:01:54.2]} 24... a5
{[%clk 0:01:57.9]} 25. Rd1 {[%clk 0:01:49.1]} 25... Qc5 {[%clk 0:01:10.9]} 26.
Qf2 {[%clk 0:01:41.1]} 26... Qxf2 {[%clk 0:00:53.9]} 27. Rxf2 {[%clk 0:01:43]}
27... Rc6 {[%clk 0:00:49.8]} 28. a4 {[%clk 0:01:16.5]} 28... Rb8 {[%clk
0:00:39.7]} 29. Bf1 {[%clk 0:01:16.9]} 29... Rd8 {[%clk 0:00:30.7]} 30. Bb5
{[%clk 0:01:16.4]} 30... Rcc8 {[%clk 0:00:29.1]} 31. Kb2 {[%clk 0:01:04.3]}
31... Bg4 {[%clk 0:00:28.5]} 32. Rd4 {[%clk 0:00:56]} 32... h5 {[%clk
0:00:28.4]} 33. h3 {[%clk 0:00:51.8]} 33... Be6 {[%clk 0:00:28.8]} 34. Bf1
{[%clk 0:00:41.8]} 34... Rd7 {[%clk 0:00:25.8]} 35. Rd1 {[%clk 0:00:40.3]} 35...
Rdd8 {[%clk 0:00:23.5]} 36. Rfd2 {[%clk 0:00:40.4]} 36... Rc6 {[%clk 0:00:16.8]}
37. Bb5 {[%clk 0:00:42]} 37... Rb6 {[%clk 0:00:18.1]} 38. c4 {[%clk 0:00:34.1]}
38... Kf6 {[%clk 0:00:15.3]} 39. c5 {[%clk 0:00:33.6]} 39... Rxb5 {[%clk
0:00:09.1]} 40. axb5 {[%clk 0:00:34.2]} 40... Rc8 {[%clk 0:00:07.5]} 41. Nxe6
{[%clk 0:00:30.4]} 41... fxe6 {[%clk 0:00:07.8]} 42. cxd6 {[%clk 0:00:31.3]}
42... Nd7 {[%clk 0:00:09]} 43. Rc1 {[%clk 0:00:32.1]} 43... Rd8 {[%clk
0:00:08.4]} 44. Rc7 {[%clk 0:00:33.2]} 44... Ne5 {[%clk 0:00:07.9]} 45. d7
{[%clk 0:00:30.3]} 45... b6 {[%clk 0:00:07.8]} 46. Rb7 {[%clk 0:00:26.2]} 46...
Ke7 {[%clk 0:00:06.7]} 47. Rxb6 {[%clk 0:00:26]} 47... Nxd7 {[%clk 0:00:07.4]}
48. Rb7 {[%clk 0:00:26.4]} 1-0

[Event "*** Titled Tuesday 3|2 Blitz"]
[Site "Chess.com"]
[Date "2016.08.02"]
[Round "6"]
[White "shivakaka"]
[Black "AdrianaNikolova"]
[Result "0-1"]
[WhiteElo "2111"]
[BlackElo "2259"]
[TimeControl "180+2"]
[EndTime "12:22:18 PDT"]
[Termination "AdrianaNikolova won on time"]

1. e4 {[%clk 0:03:01.9]} 1... d5 {[%clk 0:02:59.3]} 2. exd5 {[%clk 0:03:01.9]}
2... Qxd5 {[%clk 0:03:01.2]} 3. d4 {[%clk 0:03:02.9]} 3... Qd8 {[%clk
0:03:03.1]} 4. Nf3 {[%clk 0:03:01.1]} 4... Nf6 {[%clk 0:03:05]} 5. Bc4 {[%clk
0:02:58.2]} 5... a6 {[%clk 0:03:06.9]} 6. O-O {[%clk 0:02:57.7]} 6... e6 {[%clk
0:02:59.3]} 7. Re1 {[%clk 0:02:56.5]} 7... Be7 {[%clk 0:02:58.2]} 8. Ne5 {[%clk
0:02:53.9]} 8... b5 {[%clk 0:02:58]} 9. Bd3 {[%clk 0:02:47.4]} 9... Bb7 {[%clk
0:02:57.3]} 10. c3 {[%clk 0:02:40.7]} 10... Nbd7 {[%clk 0:02:49.5]} 11. Bf4
{[%clk 0:02:41]} 11... O-O {[%clk 0:02:41.5]} 12. Nd2 {[%clk 0:02:40]} 12... c5
{[%clk 0:02:37.1]} 13. Ndf3 {[%clk 0:02:29.8]} 13... cxd4 {[%clk 0:02:28.5]} 14.
cxd4 {[%clk 0:02:25.4]} 14... Rc8 {[%clk 0:02:12.3]} 15. Rc1 {[%clk 0:02:20.7]}
15... Rxc1 {[%clk 0:02:10.6]} 16. Qxc1 {[%clk 0:02:17.1]} 16... Nb6 {[%clk
0:02:08.3]} 17. Bb1 {[%clk 0:02:09.9]} 17... Nbd5 {[%clk 0:02:03.3]} 18. Bg5
{[%clk 0:02:07.9]} 18... Qc8 {[%clk 0:01:45.5]} 19. Qd2 {[%clk 0:02:04.9]} 19...
Bb4 {[%clk 0:01:32.4]} 20. Qd3 {[%clk 0:01:48.2]} 20... Bxe1 {[%clk 0:01:30.4]}
21. Nxe1 {[%clk 0:01:45.1]} 21... g6 {[%clk 0:01:17.7]} 22. h4 {[%clk
0:01:42.9]} 22... Nd7 {[%clk 0:01:10.5]} 23. h5 {[%clk 0:01:40.7]} 23... Nxe5
{[%clk 0:01:09.4]} 24. dxe5 {[%clk 0:01:40.7]} 24... Qc4 {[%clk 0:01:09.3]} 25.
Qd1 {[%clk 0:01:31.2]} 25... Rc8 {[%clk 0:00:50.9]} 26. Qf3 {[%clk 0:01:08.7]}
26... Qd4 {[%clk 0:00:41.7]} 27. Bf6 {[%clk 0:00:42.7]} 27... Rc1 {[%clk
0:00:37.8]} 28. Kh2 {[%clk 0:00:12.8]} 28... Qf4+ {[%clk 0:00:29.5]} 29. Qxf4
{[%clk 0:00:12.4]} 29... Nxf4 {[%clk 0:00:31.4]} 30. Nd3 {[%clk 0:00:09.5]}
30... Rxb1 {[%clk 0:00:24.1]} 31. Nxf4 {[%clk 0:00:08.1]} 31... Rxb2 {[%clk
0:00:24.9]} 32. h6 {[%clk 0:00:06.4]} 32... Rxf2 {[%clk 0:00:22.8]} 33. Kg3
{[%clk 0:00:05.3]} 33... Rxa2 {[%clk 0:00:23.3]} 34. Bg7 {[%clk 0:00:05.2]}
34... Ra3+ {[%clk 0:00:15.4]} 35. Kf2 {[%clk 0:00:05]} 35... Ra4 {[%clk
0:00:13.5]} 36. Ne2 {[%clk 0:00:05.9]} 36... f5 {[%clk 0:00:10.4]} 37. Ke3
{[%clk 0:00:06.1]} 37... Kf7 {[%clk 0:00:11]} 38. Nd4 {[%clk 0:00:05.5]} 38...
Bd5 {[%clk 0:00:09.9]} 39. Nf3 {[%clk 0:00:05.6]} 39... Bxf3 {[%clk 0:00:09.4]}
40. gxf3 {[%clk 0:00:06]} 40... b4 {[%clk 0:00:11.3]} 41. f4 {[%clk 0:00:07]}
41... b3 {[%clk 0:00:13.2]} 0-1

[Event "*** Titled Tuesday 3|2 Blitz"]
[Site "Chess.com"]
[Date "2016.08.02"]
[Round "6"]
[White "ER404"]
[Black "Alliswell998"]
[Result "0-1"]
[WhiteElo "2122"]
[BlackElo "2204"]
[TimeControl "180+2"]
[EndTime "12:22:19 PDT"]
[Termination "Alliswell998 won by checkmate"]

1. d4 {[%clk 0:03:01.9]} 1... Nf6 {[%clk 0:03:00.7]} 2. c4 {[%clk 0:03:03.1]}
2... c5 {[%clk 0:02:59.4]} 3. d5 {[%clk 0:03:03.7]} 3... b5 {[%clk 0:03:00]} 4.
cxb5 {[%clk 0:03:04.2]} 4... a6 {[%clk 0:03:01.5]} 5. bxa6 {[%clk 0:03:04.9]}
5... g6 {[%clk 0:03:02.8]} 6. Nc3 {[%clk 0:03:04]} 6... Bg7 {[%clk 0:03:02]} 7.
e4 {[%clk 0:03:04.9]} 7... O-O {[%clk 0:03:03.1]} 8. a7 {[%clk 0:03:04.4]} 8...
Rxa7 {[%clk 0:03:02.4]} 9. Nf3 {[%clk 0:03:05.6]} 9... Qa5 {[%clk 0:03:02.4]}
10. e5 {[%clk 0:02:56.7]} 10... Ne4 {[%clk 0:03:00.8]} 11. Bd2 {[%clk
0:02:42.3]} 11... Nxd2 {[%clk 0:02:50.1]} 12. Qxd2 {[%clk 0:02:43.2]} 12... Ba6
{[%clk 0:02:49.5]} 13. Be2 {[%clk 0:02:21.2]} 13... Bxe2 {[%clk 0:02:44.2]} 14.
Qxe2 {[%clk 0:02:21.5]} 14... d6 {[%clk 0:02:26.2]} 15. O-O {[%clk 0:02:11.9]}
15... Nd7 {[%clk 0:02:23.1]} 16. e6 {[%clk 0:02:04.9]} 16... fxe6 {[%clk
0:02:10.6]} 17. Qxe6+ {[%clk 0:01:58.7]} 17... Kh8 {[%clk 0:02:11.7]} 18. Ng5
{[%clk 0:01:22]} 18... h6 {[%clk 0:01:54.4]} 19. Nge4 {[%clk 0:00:51.3]} 19...
Nf6 {[%clk 0:01:17.6]} 20. Rfe1 {[%clk 0:00:35.2]} 20... Qb4 {[%clk 0:01:00.8]}
21. Re2 {[%clk 0:00:34]} 21... Kh7 {[%clk 0:00:57.2]} 22. Rae1 {[%clk
0:00:32.6]} 22... Qd4 {[%clk 0:00:55.1]} 23. Rd2 {[%clk 0:00:27.4]} 23... Qb4
{[%clk 0:00:51.6]} 24. a3 {[%clk 0:00:25.5]} 24... Qb8 {[%clk 0:00:49.6]} 25.
Qh3 {[%clk 0:00:19.5]} 25... Kg8 {[%clk 0:00:45.8]} 26. Qe6+ {[%clk 0:00:18.7]}
26... Kh7 {[%clk 0:00:46.4]} 27. Qh3 {[%clk 0:00:19.7]} 27... Kg8 {[%clk
0:00:47.4]} 28. Nxf6+ {[%clk 0:00:18.6]} 28... Rxf6 {[%clk 0:00:46.5]} 29. Ne4
{[%clk 0:00:17.8]} 29... Rf5 {[%clk 0:00:45.6]} 30. Ng3 {[%clk 0:00:17]} 30...
Rf6 {[%clk 0:00:45.4]} 31. Rde2 {[%clk 0:00:15.9]} 31... Qf8 {[%clk 0:00:46]}
32. Ne4 {[%clk 0:00:14.8]} 32... Rf5 {[%clk 0:00:46.3]} 33. Ng3 {[%clk
0:00:13.4]} 33... Rf6 {[%clk 0:00:46.5]} 34. Ne4 {[%clk 0:00:14.6]} 34... Rf5
{[%clk 0:00:45.3]} 35. Qg4 {[%clk 0:00:15.3]} 35... Kh7 {[%clk 0:00:45.2]} 36.
Ng3 {[%clk 0:00:16]} 36... Rxd5 {[%clk 0:00:43.2]} 37. h4 {[%clk 0:00:11.9]}
37... e5 {[%clk 0:00:38.4]} 38. h5 {[%clk 0:00:12.4]} 38... Qf7 {[%clk
0:00:33.6]} 39. Qe4 {[%clk 0:00:10.3]} 39... Rd4 {[%clk 0:00:32.7]} 40. hxg6+
{[%clk 0:00:10]} 40... Qxg6 {[%clk 0:00:33.1]} 41. Qc6 {[%clk 0:00:10.1]} 41...
Rf7 {[%clk 0:00:31.9]} 42. a4 {[%clk 0:00:09.6]} 42... Rh4 {[%clk 0:00:29]} 43.
a5 {[%clk 0:00:09.2]} 43... Ra7 {[%clk 0:00:19.9]} 44. Qb6 {[%clk 0:00:07.5]}
44... Qf7 {[%clk 0:00:20.1]} 45. Ne4 {[%clk 0:00:04.1]} 45... Rh5 {[%clk
0:00:15.2]} 46. Nxd6 {[%clk 0:00:04.6]} 46... Qf4 {[%clk 0:00:15.9]} 47. a6
{[%clk 0:00:04.8]} 47... Qh2+ {[%clk 0:00:16.5]} 48. Kf1 {[%clk 0:00:04.9]}
48... Qh1# {[%clk 0:00:17.7]} 0-1

[Event "*** Titled Tuesday 3|2 Blitz"]
[Site "Chess.com"]
[Date "2016.08.02"]
[Round "6"]
[White "Maitreia"]
[Black "igorkovalenko"]
[Result "0-1"]
[WhiteElo "2355"]
[BlackElo "2549"]
[TimeControl "180+2"]
[EndTime "12:22:53 PDT"]
[Termination "igorkovalenko won by resignation"]

1. c4 {[%clk 0:03:01.9]} 1... e5 {[%clk 0:03:00.4]} 2. g3 {[%clk 0:03:03.4]}
2... Nf6 {[%clk 0:03:00.9]} 3. Bg2 {[%clk 0:03:04.9]} 3... Nc6 {[%clk
0:02:59.5]} 4. Nf3 {[%clk 0:03:00.7]} 4... Be7 {[%clk 0:02:58]} 5. Nc3 {[%clk
0:02:59.7]} 5... O-O {[%clk 0:02:59.1]} 6. O-O {[%clk 0:03:00.2]} 6... Re8
{[%clk 0:02:59.2]} 7. d3 {[%clk 0:03:01.1]} 7... h6 {[%clk 0:02:59.3]} 8. a3
{[%clk 0:02:56.2]} 8... a5 {[%clk 0:02:59.7]} 9. Rb1 {[%clk 0:02:57.2]} 9... Bf8
{[%clk 0:02:57.4]} 10. Bd2 {[%clk 0:02:55.9]} 10... Ra6 {[%clk 0:02:55.5]} 11.
Nd5 {[%clk 0:02:55.7]} 11... Nd4 {[%clk 0:02:52.1]} 12. e3 {[%clk 0:02:47.6]}
12... Nxf3+ {[%clk 0:02:50.9]} 13. Bxf3 {[%clk 0:02:47.4]} 13... a4 {[%clk
0:02:49.3]} 14. Nc3 {[%clk 0:02:41.5]} 14... c6 {[%clk 0:02:28.3]} 15. Nxa4
{[%clk 0:02:41.1]} 15... d5 {[%clk 0:02:24.8]} 16. Nc3 {[%clk 0:02:30.4]} 16...
e4 {[%clk 0:02:06.5]} 17. dxe4 {[%clk 0:02:25.8]} 17... dxc4 {[%clk 0:02:07.4]}
18. Qe2 {[%clk 0:02:19.7]} 18... b5 {[%clk 0:02:07.8]} 19. Rfd1 {[%clk
0:02:20.4]} 19... Qe7 {[%clk 0:02:03.2]} 20. Be1 {[%clk 0:02:01.3]} 20... h5
{[%clk 0:02:00]} 21. Rd4 {[%clk 0:01:58.2]} 21... Bg4 {[%clk 0:01:59.9]} 22.
Rbd1 {[%clk 0:01:56.4]} 22... Raa8 {[%clk 0:01:56]} 23. Bxg4 {[%clk 0:01:51.7]}
23... hxg4 {[%clk 0:01:56.9]} 24. f3 {[%clk 0:01:35.5]} 24... gxf3 {[%clk
0:01:55.6]} 25. Qxf3 {[%clk 0:01:37.4]} 25... Qe6 {[%clk 0:01:54.6]} 26. Bf2
{[%clk 0:01:13.9]} 26... Ng4 {[%clk 0:01:26]} 27. Qf5 {[%clk 0:00:58.7]} 27...
Ne5 {[%clk 0:01:23.7]} 28. Qxe6 {[%clk 0:00:56.6]} 28... Rxe6 {[%clk 0:01:22.2]}
29. Kg2 {[%clk 0:00:58.1]} 29... Ree8 {[%clk 0:01:22.8]} 30. h3 {[%clk
0:00:40.1]} 30... Bc5 {[%clk 0:01:22.8]} 31. R4d2 {[%clk 0:00:40.8]} 31... Nd3
{[%clk 0:01:14]} 32. Kf3 {[%clk 0:00:31.3]} 32... Re6 {[%clk 0:01:08.8]} 33. Ke2
{[%clk 0:00:28.2]} 33... Rh6 {[%clk 0:01:06.4]} 34. h4 {[%clk 0:00:19.3]} 34...
Rf6 {[%clk 0:01:04.4]} 35. Bg1 {[%clk 0:00:17.3]} 35... Rg6 {[%clk 0:01:03.9]}
36. Bf2 {[%clk 0:00:18.3]} 36... Bd6 {[%clk 0:01:05]} 37. e5 {[%clk 0:00:14.4]}
37... Bxe5 {[%clk 0:01:05.9]} 38. Ne4 {[%clk 0:00:09.5]} 38... Rg4 {[%clk
0:00:59.3]} 39. Kf3 {[%clk 0:00:07.9]} 39... f5 {[%clk 0:01:00.5]} 40. Nc3
{[%clk 0:00:06.2]} 40... Bxc3 {[%clk 0:00:57.6]} 41. bxc3 {[%clk 0:00:06.8]}
41... Rxa3 {[%clk 0:00:59.2]} 42. Rxd3 {[%clk 0:00:05.7]} 42... cxd3 {[%clk
0:01:00.2]} 43. Rxd3 {[%clk 0:00:07.6]} 43... Rc4 {[%clk 0:01:01.3]} 44. h5
{[%clk 0:00:06.5]} 44... Kh7 {[%clk 0:01:01.9]} 45. Rd7 {[%clk 0:00:05.5]} 45...
Ra1 {[%clk 0:01:01.9]} 46. Re7 {[%clk 0:00:03]} 46... Rh1 {[%clk 0:01:00.6]} 47.
Rf7 {[%clk 0:00:03.7]} 47... Rxh5 {[%clk 0:01:01.3]} 48. Kg2 {[%clk 0:00:04.4]}
48... Kg6 {[%clk 0:01:02.5]} 49. Rd7 {[%clk 0:00:04.6]} 49... Rh8 {[%clk
0:01:03.3]} 50. Rd6+ {[%clk 0:00:05.1]} 50... Kh7 {[%clk 0:01:02]} 51. Rd7
{[%clk 0:00:05.7]} 51... Re8 {[%clk 0:01:03.1]} 52. Rd3 {[%clk 0:00:04]} 52...
Kg6 {[%clk 0:01:03.5]} 53. Kf3 {[%clk 0:00:05.2]} 53... Kf6 {[%clk 0:01:04.5]}
54. Rd6+ {[%clk 0:00:06.4]} 54... Re6 {[%clk 0:01:05.2]} 55. Rd7 {[%clk
0:00:07.5]} 55... g5 {[%clk 0:01:06.6]} 56. Be1 {[%clk 0:00:07.6]} 56... g4+
{[%clk 0:01:08.1]} 57. Ke2 {[%clk 0:00:08.3]} 57... Re7 {[%clk 0:01:09.7]} 58.
Rd6+ {[%clk 0:00:08.8]} 58... Ke5 {[%clk 0:01:11.2]} 59. Rd3 {[%clk 0:00:06.2]}
59... Ra7 {[%clk 0:01:10.6]} 60. Bd2 {[%clk 0:00:06.3]} 60... Rca4 {[%clk
0:01:11]} 61. Rd8 {[%clk 0:00:04.9]} 61... Rh7 {[%clk 0:01:10.8]} 62. Re8+
{[%clk 0:00:02.9]} 62... Kd5 {[%clk 0:01:12]} 63. Kd3 {[%clk 0:00:04.1]} 63...
c5 {[%clk 0:01:13]} 64. Rd8+ {[%clk 0:00:05]} 64... Kc6 {[%clk 0:01:13.6]} 65.
Rc8+ {[%clk 0:00:05.8]} 65... Kd6 {[%clk 0:01:15.1]} 66. Rd8+ {[%clk 0:00:06.9]}
66... Kc7 {[%clk 0:01:16]} 67. Rd5 {[%clk 0:00:07.6]} 67... Rd7 {[%clk
0:01:16.2]} 0-1

[Event "*** Titled Tuesday 3|2 Blitz"]
[Site "Chess.com"]
[Date "2016.08.02"]
[Round "6"]
[White "Krutoy123"]
[Black "ChessWarrior7197"]
[Result "0-1"]
[WhiteElo "2397"]
[BlackElo "2471"]
[TimeControl "180+2"]
[EndTime "12:22:59 PDT"]
[Termination "ChessWarrior7197 won by resignation"]

1. e4 {[%clk 0:03:01.9]} 1... c5 {[%clk 0:02:59.8]} 2. Nf3 {[%clk 0:03:03]} 2...
d6 {[%clk 0:03:01]} 3. d3 {[%clk 0:03:04.2]} 3... g6 {[%clk 0:03:01.3]} 4. g3
{[%clk 0:03:04.9]} 4... Bg7 {[%clk 0:03:02.5]} 5. Bg2 {[%clk 0:03:06]} 5... Nc6
{[%clk 0:03:04.2]} 6. O-O {[%clk 0:03:06.8]} 6... e6 {[%clk 0:03:05.6]} 7. c3
{[%clk 0:03:04.2]} 7... Nge7 {[%clk 0:03:05.7]} 8. Be3 {[%clk 0:03:05.4]} 8...
O-O {[%clk 0:03:06.5]} 9. Qd2 {[%clk 0:03:06.7]} 9... e5 {[%clk 0:03:04.9]} 10.
Bh6 {[%clk 0:03:07.6]} 10... b6 {[%clk 0:03:04.5]} 11. Bxg7 {[%clk 0:03:08.2]}
11... Kxg7 {[%clk 0:03:05.4]} 12. Na3 {[%clk 0:03:09.6]} 12... h6 {[%clk
0:03:03.9]} 13. d4 {[%clk 0:03:09.6]} 13... Ba6 {[%clk 0:02:53.5]} 14. Rfd1
{[%clk 0:03:08.8]} 14... Qc7 {[%clk 0:02:53.6]} 15. dxe5 {[%clk 0:02:58.9]}
15... dxe5 {[%clk 0:02:54]} 16. Qd6 {[%clk 0:02:59.4]} 16... Qxd6 {[%clk
0:02:46.4]} 17. Rxd6 {[%clk 0:03:01.3]} 17... Rfd8 {[%clk 0:02:45.2]} 18. Rad1
{[%clk 0:03:01.4]} 18... f6 {[%clk 0:02:46.4]} 19. Bf1 {[%clk 0:02:58.2]} 19...
Bxf1 {[%clk 0:02:44.2]} 20. Kxf1 {[%clk 0:03:00.1]} 20... Rxd6 {[%clk
0:02:45.3]} 21. Rxd6 {[%clk 0:03:02]} 21... Rd8 {[%clk 0:02:46.4]} 22. Rxd8
{[%clk 0:02:59.2]} 22... Nxd8 {[%clk 0:02:47.3]} 23. Nd2 {[%clk 0:03:01.1]}
23... Kf7 {[%clk 0:02:47.7]} 24. Nb5 {[%clk 0:03:00.2]} 24... Ndc6 {[%clk
0:02:45.8]} 25. Ke2 {[%clk 0:02:56.6]} 25... Ke6 {[%clk 0:02:46.9]} 26. Na3
{[%clk 0:02:56.1]} 26... Nc8 {[%clk 0:02:44.9]} 27. Nac4 {[%clk 0:02:56.1]}
27... Nd6 {[%clk 0:02:41.8]} 28. Ne3 {[%clk 0:02:57.4]} 28... Ne7 {[%clk
0:02:40.8]} 29. f3 {[%clk 0:02:58.5]} 29... f5 {[%clk 0:02:40.8]} 30. Nec4
{[%clk 0:02:47.9]} 30... Nxc4 {[%clk 0:02:35]} 31. Nxc4 {[%clk 0:02:49.8]} 31...
fxe4 {[%clk 0:02:35.9]} 32. fxe4 {[%clk 0:02:51.7]} 32... Nc8 {[%clk 0:02:34.7]}
33. Ne3 {[%clk 0:02:47.1]} 33... Nd6 {[%clk 0:02:34.4]} 34. Kf3 {[%clk
0:02:48.6]} 34... Nf7 {[%clk 0:02:33.9]} 35. h4 {[%clk 0:02:49.5]} 35... h5
{[%clk 0:02:33.7]} 36. Nd5 {[%clk 0:02:36.4]} 36... g5 {[%clk 0:02:30.5]} 37.
hxg5 {[%clk 0:02:24.5]} 37... Nxg5+ {[%clk 0:02:30.7]} 38. Ke3 {[%clk
0:02:25.9]} 38... Nh7 {[%clk 0:02:26.3]} 39. Nc7+ {[%clk 0:02:26.3]} 39... Kd7
{[%clk 0:02:25.7]} 40. Nb5 {[%clk 0:02:26.5]} 40... a6 {[%clk 0:02:25.4]} 41.
Na3 {[%clk 0:02:27.9]} 41... Nf6 {[%clk 0:02:23.9]} 42. Nc4 {[%clk 0:02:27.7]}
42... Ng4+ {[%clk 0:02:25]} 43. Ke2 {[%clk 0:02:23]} 43... b5 {[%clk 0:02:25.7]}
44. Nd2 {[%clk 0:02:14]} 44... Kd6 {[%clk 0:02:23.1]} 45. Nf3 {[%clk 0:02:03.9]}
45... c4 {[%clk 0:02:20.2]} 46. Nh4 {[%clk 0:02:02.5]} 46... Nf6 {[%clk
0:02:10.1]} 47. Ke3 {[%clk 0:02:01.2]} 47... Ke6 {[%clk 0:02:10.4]} 48. Ng2
{[%clk 0:01:46.3]} 48... Nd7 {[%clk 0:02:09.9]} 49. Nh4 {[%clk 0:01:38.8]} 49...
Nc5 {[%clk 0:02:10.3]} 50. Nf5 {[%clk 0:01:36.8]} 50... Kf6 {[%clk 0:02:11.1]}
51. Nd6 {[%clk 0:01:30.2]} 51... Na4 {[%clk 0:02:10]} 52. Ne8+ {[%clk
0:01:07.9]} 52... Kg5 {[%clk 0:02:10.3]} 53. Nc7 {[%clk 0:01:07.4]} 53... Nxb2
{[%clk 0:02:10.7]} 54. Nxa6 {[%clk 0:01:08]} 54... Na4 {[%clk 0:02:11.6]} 55.
Kf3 {[%clk 0:00:51.2]} 55... Nxc3 {[%clk 0:02:11.1]} 56. Nb4 {[%clk 0:00:53.1]}
56... Kf6 {[%clk 0:02:00.1]} 57. a3 {[%clk 0:00:44.5]} 57... Ke6 {[%clk
0:01:59.7]} 58. Nc2 {[%clk 0:00:45.7]} 58... Kd6 {[%clk 0:01:54.6]} 59. Ke3
{[%clk 0:00:41.2]} 59... Kc5 {[%clk 0:01:54.9]} 60. Ne1 {[%clk 0:00:42.8]} 60...
Nd1+ {[%clk 0:01:46.3]} 61. Ke2 {[%clk 0:00:37.3]} 61... Nc3+ {[%clk 0:01:35.1]}
62. Ke3 {[%clk 0:00:38.5]} 62... Nb1 {[%clk 0:01:33.4]} 63. Nc2 {[%clk 0:00:39]}
63... Kb6 {[%clk 0:01:34.3]} 64. Kf3 {[%clk 0:00:32.5]} 64... Ka5 {[%clk
0:01:27.2]} 65. g4 {[%clk 0:00:33.8]} 65... hxg4+ {[%clk 0:01:27.4]} 66. Kxg4
{[%clk 0:00:35.7]} 66... Ka4 {[%clk 0:01:24.1]} 67. Kf5 {[%clk 0:00:37.3]} 67...
Nxa3 {[%clk 0:01:25.1]} 68. Ne1 {[%clk 0:00:38.7]} 68... c3 {[%clk 0:01:24.5]}
69. Kxe5 {[%clk 0:00:40]} 69... b4 {[%clk 0:01:14.3]} 70. Kd4 {[%clk 0:00:36.9]}
70... Nb5+ {[%clk 0:01:15.2]} 71. Kd3 {[%clk 0:00:32]} 71... b3 {[%clk
0:01:14.8]} 72. e5 {[%clk 0:00:33.6]} 72... b2 {[%clk 0:01:16.3]} 73. Kc2 {[%clk
0:00:34.9]} 73... Na3+ {[%clk 0:01:17.5]} 0-1